Workbook

Sheet Main
A1: TOOL FOR LONG-RANGE EDUCATOR COST PROJECTIONS
A2: Last date at which the design (as opposed to the data) of this tool was changed: | I2: 2023-06-12
A3: Date on which the scenario displayed below was last changed: | I3: 2023-06-12
A4: Name of this scenario: | C4: "Population + Grade 12 + LE" - this scenario assumes growth of 15.7% in the number of educators between 2022 and 2030
A32: The cell colouring has the following meaning:
A33: Green for insertion of scenario inputs.
A34: Light yellow is a cell equal to another cell - do not change.
A35: Dark yellow is an Excel formula - do not change.
A36: Pink is where the code updates values during a run.
A37: INPUT DATA
A38: Year
B43: What is the base year (the year for which the start data applies)? | H43: 2022
B44: The maximum year in the scenario is thus... | H44: =startyear+50 -> 2072
A45: Educators by notch code, age and category for base year
A55: Notch code and notch value
A64: Entry levels and ceilings in the notch structure
A77: Notch codes | F77: Notch values
C78: Entry | D78: Ceiling | H78: Entry | I78: Ceiling
A79: Teachers | C79: 164 | D79: 325 | F79: Teachers | H79: =SUMIF(Notches!$A$2:$A$500,C79,Notches!$B$2:$B$500) -> 292764 | I79: =SUMIF(Notches!$A$2:$A$500,D79,Notches!$B$2:$B$500) -> 646941
A80: Non-teachers | C80: 209 | D80: 491 | F80: Non-teachers | H80: =SUMIF(Notches!$A$2:$A$500,C80,Notches!$B$2:$B$500) -> 362766 | I80: =SUMIF(Notches!$A$2:$A$500,D80,Notches!$B$2:$B$500) -> 1467768
A90: Educator post projections
A98: Year | D98: =startyear -> 2022 | E98: 2030
A99: Teachers | D99: =SUMIF(Educators!B2:B15000,1,Educators!D2:D15000) -> 315464 | E99: =ROUND(D99*1.157,0) -> 364992
A100: Non-teachers | D100: =SUMIF(Educators!B2:B15000,0,Educators!D2:D15000) -> 87781 | E100: =ROUND(D100*1.157,0) -> 101563
A101: Total of above | D101: =SUM(D99:D100) -> 403245 | E101: =SUM(E99:E100) -> 466555
A102: Cost of living adjustments above inflation
A113: Year | D113: =startyear -> 2022 | E113: 2060
A114: Difference CoL-inflation | D114: 0 | E114: 0
A118: Annual notch increments
A128: Year | D128: =startyear -> 2022 | E128: 2072
A129: Teachers
A130: First level
A131: Number of notches | D131: 3
A132: % of employees | D132: 1 | E132: 1
A133: Second level
A134: Number of notches
A135: % of employees
A136: Third level
A137: Number of notches
A138: % of employees
A139: Must be no more than 100% | D139: =D132+D135+D138 -> 1 | E139: =E132+E135+E138 -> 1
A140: Non-teachers
A141: First level
A142: Number of notches | D142: 3
A143: % of employees | D143: 1 | E143: 1
A144: Second level
A145: Number of notches
A146: % of employees
A147: Third level
A148: Number of notches
A149: % of employees
A150: Must be no more than 100% | D150: =D143+D146+D149 -> 1 | E150: =E143+E146+E149 -> 1
A152: Benefits as a percentage of basic salary
A156: Year | D156: =startyear -> 2022 | E156: 2060
A157: Benefits as a % of basic salary
C158: 21 | D158: 0.406213137 | E158: 0.406213137
C159: 22 | D159: 0.406213137 | E159: 0.406213137
C160: 23 | D160: 0.3886394586 | E160: 0.3886394586
C161: 24 | D161: 0.3731643979 | E161: 0.3731643979
C162: 25 | D162: 0.3634438821 | E162: 0.3634438821
C163: 26 | D163: 0.356051659 | E163: 0.356051659
C164: 27 | D164: 0.3552497992 | E164: 0.3552497992
C165: 28 | D165: 0.3570473454 | E165: 0.3570473454
C166: 29 | D166: 0.3621826222 | E166: 0.3621826222
C167: 30 | D167: 0.3658392714 | E167: 0.3658392714
C168: 31 | D168: 0.3691075363 | E168: 0.3691075363
C169: 32 | D169: 0.3721647169 | E169: 0.3721647169
C170: 33 | D170: 0.3768749533 | E170: 0.3768749533
C171: 34 | D171: 0.3808979505 | E171: 0.3808979505
C172: 35 | D172: 0.3851362486 | E172: 0.3851362486
C173: 36 | D173: 0.3874463635 | E173: 0.3874463635
C174: 37 | D174: 0.3879523439 | E174: 0.3879523439
C175: 38 | D175: 0.3859637415 | E175: 0.3859637415
C176: 39 | D176: 0.3853773051 | E176: 0.3853773051
C177: 40 | D177: 0.38503951 | E177: 0.38503951
C178: 41 | D178: 0.3819473869 | E178: 0.3819473869
C179: 42 | D179: 0.3783292031 | E179: 0.3783292031
C180: 43 | D180: 0.3723612148 | E180: 0.3723612148
C181: 44 | D181: 0.3689688635 | E181: 0.3689688635
C182: 45 | D182: 0.364254543 | E182: 0.364254543
C183: 46 | D183: 0.361272238 | E183: 0.361272238
C184: 47 | D184: 0.3581472472 | E184: 0.3581472472
C185: 48 | D185: 0.3566935618 | E185: 0.3566935618
C186: 49 | D186: 0.3547947746 | E186: 0.3547947746
C187: 50 | D187: 0.3526633926 | E187: 0.3526633926
C188: 51 | D188: 0.3494187914 | E188: 0.3494187914
C189: 52 | D189: 0.3458519724 | E189: 0.3458519724
C190: 53 | D190: 0.3424700818 | E190: 0.3424700818
C191: 54 | D191: 0.3408316906 | E191: 0.3408316906
C192: 55 | D192: 0.3389418057 | E192: 0.3389418057
C193: 56 | D193: 0.3366047287 | E193: 0.3366047287
C194: 57 | D194: 0.3316344971 | E194: 0.3316344971
C195: 58 | D195: 0.3283543438 | E195: 0.3283543438
C196: 59 | D196: 0.3396000545 | E196: 0.3396000545
C197: 60 | D197: 0.3478968085 | E197: 0.3478968085
C198: 61 | D198: 0.357632837 | E198: 0.357632837
C199: 62 | D199: 0.3365598 | E199: 0.3365598
C200: 63 | D200: 0.3278044123 | E200: 0.3278044123
C201: 64 | D201: 0.3791647264 | E201: 0.3791647264
C202: 65 | D202: 0.3791647264 | E202: 0.3791647264
A203: Base year values using values from above and from sheets Educators and Notches
C204: Average | D204: Total (Rm)
A205: Notch cost | C205: =D205*1000000/D101 -> 350099.1298 | D205: =SUMPRODUCT(B584:B1083,E584:E1083)/1000000 -> 141175.7236
A206: With benefits | C206: =D206*1000000/D101 -> 474387.1308 | D206: =SUM(P1085:BH1085)/1000 -> 191294.2386
A207: Annual joiner and attrition trends
A224: Joiners
A225: Year | D225: =startyear -> 2022 | E225: 2060
A226: Youth cohort (thousands) | D226: 1000 | E226: 1000
A227: % available to join | D227: 1 | E227: 1
A228: Number of available joiners | D228: =D227*D226*1000 -> 1000000 | E228: =E227*E226*1000 -> 1000000
A230: Distribution of joiners across age in two years | H230: Attrition rate by age in two years | O230: Percentage of joiners by age assumed to be first-time joiners
B231: =startyear -> 2022 | C231: 2038 | I231: =startyear -> 2022 | J231: 2060 | L231: Non-teachers leaving initially
A232: 21 | B232: 0.00245025245 | C232: 0.0005253354984 | H232: 21 | I232: 0.2891181081 | J232: =I232 -> 0.2891181081 | L232: =SUMPRODUCT(I232:I275,C514:C557)+C558 -> 6346.534178 | O232: 21 | P232: 1
A233: 22 | B233: 0.01674339174 | C233: 0.003589792572 | H233: 22 | I233: 0.0943949047 | J233: =I233 -> 0.0943949047 | O233: 22 | P233: 1
A234: 23 | B234: 0.07087169587 | C234: 0.2144005604 | H234: 23 | I234: 0.08619514218 | J234: 0.08619514218 | O234: 23 | P234: 0.9991345
A235: 24 | B235: 0.09481734482 | C235: 0.2144005604 | H235: 24 | I235: 0.07723189705 | J235: 0.07723189705 | O235: 24 | P235: 0.9947056
A236: 25 | B236: 0.09388921889 | C236: 0.2144005604 | H236: 25 | I236: 0.0730102943 | J236: 0.0730102943 | O236: 25 | P236: 0.9759885
A237: 26 | B237: 0.07625482625 | C237: 0.2144005604 | H237: 26 | I237: 0.06883215753 | J237: 0.06883215753 | O237: 26 | P237: 0.9453012
A238: 27 | B238: 0.05925155925 | C238: 0.01270356751 | H238: 27 | I238: 0.06567067905 | J238: 0.06567067905 | O238: 27 | P238: 0.9093097
A239: 28 | B239: 0.04807692308 | C239: 0.01030771925 | H239: 28 | I239: 0.0669708612 | J239: 0.0669708612 | O239: 28 | P239: 0.8709783
A240: 29 | B240: 0.03927828928 | C240: 0.008421287231 | H240: 29 | I240: 0.06196564407 | J240: 0.06196564407 | O240: 29 | P240: 0.8347673
A241: 30 | B241: 0.03456340956 | C241: 0.007410414378 | H241: 30 | I241: 0.05520051615 | J241: 0.05520051615 | O241: 30 | P241: 0.7644191
A242: 31 | B242: 0.030999406 | C242: 0.006646290017 | H242: 31 | I242: 0.05541252596 | J242: 0.05541252596 | O242: 31 | P242: 0.7542037
A243: 32 | B243: 0.0268042768 | C243: 0.005746851967 | H243: 32 | I243: 0.05702593738 | J243: 0.05702593738 | O243: 32 | P243: 0.7146705
A244: 33 | B244: 0.02487377487 | C244: 0.005332951271 | H244: 33 | I244: 0.05029419785 | J244: 0.05029419785 | O244: 33 | P244: 0.6982149
A245: 34 | B245: 0.0258019008 | C245: 0.00553194199 | H245: 34 | I245: 0.05202474367 | J245: 0.05202474367 | O245: 34 | P245: 0.7102681
A246: 35 | B246: 0.02279477279 | C246: 0.00488721206 | H246: 35 | I246: 0.05186657167 | J246: 0.05186657167 | O246: 35 | P246: 0.6633469
A247: 36 | B247: 0.0198990199 | C247: 0.004266361017 | H247: 36 | I247: 0.05511383489 | J247: 0.05511383489 | O247: 36 | P247: 0.6672563
A248: 37 | B248: 0.01882239382 | C248: 0.004035531783 | H248: 37 | I248: 0.05007724807 | J248: 0.05007724807 | O248: 37 | P248: 0.6504453
A249: 38 | B249: 0.01551826552 | C249: 0.003327124823 | H249: 38 | I249: 0.04804605514 | J249: 0.04804605514 | O249: 38 | P249: 0.6593494
A250: 39 | B250: 0.01592664093 | C250: 0.003414680739 | H250: 39 | I250: 0.0401416635 | J250: 0.0401416635 | O250: 39 | P250: 0.6821955
A251: 40 | B251: 0.01548114048 | C251: 0.003319165194 | H251: 40 | I251: 0.04089765955 | J251: 0.04089765955 | O251: 40 | P251: 0.6492581
A252: 41 | B252: 0.01273388773 | C252: 0.002730152666 | H252: 41 | I252: 0.03463006902 | J252: 0.03463006902 | O252: 41 | P252: 0.6736845
A253: 42 | B253: 0.01451588952 | C253: 0.003112214846 | H253: 42 | I253: 0.02873894498 | J253: 0.02873894498 | O253: 42 | P253: 0.5851111
A254: 43 | B254: 0.01488713989 | C254: 0.003191811134 | H254: 43 | I254: 0.02804963532 | J254: 0.02804963532 | O254: 43 | P254: 0.6310035
A255: 44 | B255: 0.01562964063 | C255: 0.003351003709 | H255: 44 | I255: 0.02554920568 | J255: 0.02554920568 | O255: 44 | P255: 0.587126
A256: 45 | B256: 0.01566676567 | C256: 0.003358963338 | H256: 45 | I256: 0.02446146809 | J256: 0.02446146809 | O256: 45 | P256: 0.5428587
A257: 46 | B257: 0.01425601426 | C257: 0.003056497445 | H257: 46 | I257: 0.0230536013 | J257: 0.0230536013 | O257: 46 | P257: 0.467223
A258: 47 | B258: 0.01618651619 | C258: 0.003470398141 | H258: 47 | I258: 0.02326923453 | J258: 0.02326923453 | O258: 47 | P258: 0.3861144
A259: 48 | B259: 0.01551826552 | C259: 0.003327124823 | H259: 48 | I259: 0.02121455948 | J259: 0.02121455948 | O259: 48 | P259: 0.410659
A260: 49 | B260: 0.01681764182 | C260: 0.00360571183 | H260: 49 | I260: 0.02233151034 | J260: 0.02233151034 | O260: 49 | P260: 0.2551539
A261: 50 | B261: 0.01581526582 | C261: 0.003390801853 | H261: 50 | I261: 0.02327461619 | J261: 0.02327461619 | O261: 50 | P261: 0.1787531
A262: 51 | B262: 0.01462726463 | C262: 0.003136093733 | H262: 51 | I262: 0.02509193781 | J262: 0.02509193781 | O262: 51 | P262: 0.1737946
A263: 52 | B263: 0.01225126225 | C263: 0.002626677492 | H263: 52 | I263: 0.02531186543 | J263: 0.02531186543 | O263: 52 | P263: 0.0332975
A264: 53 | B264: 0.0103950104 | C264: 0.002228696054 | H264: 53 | I264: 0.0206671406 | J264: 0.0206671406 | O264: 53 | P264: 0.0523175
A265: 54 | B265: 0.009652509653 | C265: 0.002069503478 | H265: 54 | I265: 0.03524139967 | J265: 0.03524139967 | O265: 54 | P265: 0
A266: 55 | B266: 0.008761508762 | C266: 0.001878472388 | H266: 55 | I266: 0.05295588831 | J266: 0.05295588831 | O266: 55 | P266: 0
A267: 56 | B267: 0.007239382239 | C267: 0.001552127609 | H267: 56 | I267: 0.04812653433 | J267: 0.04812653433 | O267: 56 | P267: 0
A268: 57 | B268: 0.006051381051 | C268: 0.001297419488 | H268: 57 | I268: 0.05858839945 | J268: 0.05858839945 | O268: 57 | P268: 0
A269: 58 | B269: 0.005717255717 | C269: 0.001225782829 | H269: 58 | I269: 0.07260029416 | J269: 0.07260029416 | O269: 58 | P269: 0
A270: 59 | B270: 0.004900504901 | C270: 0.001050670997 | H270: 59 | I270: 0.2276858801 | J270: 0.2276858801 | O270: 59 | P270: 0
A271: 60 | B271: 0.003601128601 | C271: 0.00077208399 | H271: 60 | I271: 0.3532599401 | J271: 0.3532599401 | O271: 60 | P271: 0
A272: 61 | B272: 0.003118503119 | C272: 0.0006686088161 | H272: 61 | I272: 0.2161392146 | J272: 0.2161392146 | O272: 61 | P272: 0
A273: 62 | B273: 0.003452628453 | C273: 0.000740245475 | H273: 62 | I273: 0.2091664525 | J273: 0.2091664525 | O273: 62 | P273: 0
A274: 63 | B274: 0.00297000297 | C274: 0.000636770301 | H274: 63 | I274: 0.2095131658 | J274: 0.2095131658 | O274: 63 | P274: 0
A275: 64 | B275: 0.002116127116 | C275: 0.0004536988395 | H275: 64 | I275: 0.7176269369 | J275: 0.7176269369 | O275: 64 | P275: 0
B276: =SUM(B232:B275) -> 1 | C276: =SUM(C232:C275) -> 1 | I276: =(SUMPRODUCT(I232:I275,B514:B557)+B558)/SUM(B514:B558) -> 0.06550548422 | J276: Overall attrition rate in base year
A294: Pre-qualified joiners
A312: Year | F312: =startyear+1 -> 2023 | G312: 2030 | H312: Beyond the inputted second year, no pre-qualified joiners are assumed.
A313: % of joiners who are pre-qualified | F313: 0 | G313: 0 | H313: These values will only be applied to joiners aged 30 and below. Make both values zero if no pre-qualified joiners are assumed.
A314: Notch code of entry notch for pre-qualified | F314: 111 | H314: =SUMIF(Notches!$A$2:$A$500,F314,Notches!$B$2:$B$500) -> 224676 | I314: Notch value of this code
H315: =D99/H314-1 -> 0.4040841033 | I315: Premium of qualified entry level relative to pre-qualified entry notch
A316: Years taken on the job to complete qualification | F316: 2
A325: Annual promotion trends
A343: Notch range | E343: Probability of being promoted | H343: Percentage bonus
B344: =(B446-B346)/100 -> 13389.3 | C344: 1/100 of range | E344: =startyear -> 2022 | H344: =startyear -> 2022
E345: Teachers | F345: Non-teachers | H345: Teachers | I345: Non-teachers
A346: 1 | B346: =SUMIF(Notches!$A$2:$A$500,1,Notches!$B$2:$B$500) -> 128838 | E346: 0 | F346: 0 | H346: 0 | I346: 0
A347: 2 | B347: =B346+B$344 -> 142227.3 | E347: 0.0007714506767 | F347: 0 | H347: 0 | I347: 0
A348: 3 | B348: =B347+B$344 -> 155616.6 | E348: 0 | F348: 0 | H348: 0 | I348: 0
A349: 4 | B349: 169005.9 | E349: 0 | F349: 0 | H349: 0 | I349: 0
A350: 5 | B350: 182395.2 | E350: 0 | F350: 0 | H350: 0 | I350: 0
A351: 6 | B351: 195784.5 | E351: 0 | F351: 0 | H351: 0 | I351: 0
A352: 7 | B352: 209173.8 | E352: 0.003161499851 | F352: 0 | H352: 0.64172 | I352: 0
A353: 8 | B353: 222563.1 | E353: 0.005081172245 | F353: 0 | H353: 0.5964357036 | I353: 0
A354: 9 | B354: 235952.4 | E354: 0.005092228441 | F354: 0 | H354: 0.582582055 | I354: 0
A355: 10 | B355: 249341.7 | E355: 0.006193787288 | F355: 0 | H355: 0.5444884253 | I355: 0
A356: 11 | B356: 262731 | E356: 0.006674407277 | F356: 0 | H356: 0.3985345867 | I356: 0
A357: 12 | B357: 276120.3 | E357: 0.003321563485 | F357: 0 | H357: 0.30798798 | I357: 0
A358: 13 | B358: 289509.6 | E358: 0.008586801132 | F358: 0 | H358: 0.233606931 | I358: 0
A359: 14 | B359: 302898.9 | E359: 0.01070371824 | F359: 0.07104213475 | H359: 0.2121632451 | I359: 0
A360: 15 | B360: 316288.2 | E360: 0.01511780288 | F360: 0.04972949433 | H360: 0.1883064945 | I360: 0
A361: 16 | B361: 329677.5 | E361: 0.01647841862 | F361: 0.03552106738 | H361: 0.146648684 | I361: 0
A362: 17 | B362: 343066.8 | E362: 0.0165512081 | F362: 0 | H362: 0.1038914964 | I362: 0
A363: 18 | B363: 356456.1 | E363: 0.01623877614 | F363: 0.03522604753 | H363: 0.08306311784 | I363: 0.1805426
A364: 19 | B364: 369845.4 | E364: 0.01634004657 | F364: 0.04062916178 | H364: 0.08027234165 | I364: 0.1687725695
A365: 20 | B365: 383234.7 | E365: 0.01496346158 | F365: 0.04227296031 | H365: 0.07573807154 | I365: 0.1588577154
A366: 21 | B366: 396624 | E366: 0.01567135632 | F366: 0.04732793946 | H366: 0.07738635815 | I366: 0.1403964583
A367: 22 | B367: 410013.3 | E367: 0.01742655823 | F367: 0.04810493734 | H367: 0.07189079952 | I367: 0.1142447403
A368: 23 | B368: 423402.6 | E368: 0.01510634196 | F368: 0.04026993905 | H368: 0.06902461698 | I368: 0.1254999555
A369: 24 | B369: 436791.9 | E369: 0.01154149345 | F369: 0.04071578692 | H369: 0.05849280698 | I369: 0.1510723525
A370: 25 | B370: 450181.2 | E370: 0.009597424342 | F370: 0.04063814791 | H370: 0.06319828017 | I370: 0.1568484065
A371: 26 | B371: 463570.5 | E371: 0.009332817445 | F371: 0.04292554823 | H371: 0.06511398409 | I371: 0.1525274741
A372: 27 | B372: 476959.8 | E372: 0.01068870721 | F372: 0.04207968248 | H372: 0.07087447037 | I372: 0.135832987
A373: 28 | B373: 490349.1 | E373: 0.00880418992 | F373: 0.04084195851 | H373: 0.05142703158 | I373: 0.1170624126
A374: 29 | B374: 503738.4 | E374: 0.01118874678 | F374: 0.03799672256 | H374: 0.04970358571 | I374: 0.1155025716
A375: 30 | B375: 517127.7 | E375: 0.01199767609 | F375: 0.03175297853 | H375: 0.05477226296 | I375: 0.1191624368
A376: 31 | B376: 530517 | E376: 0.01283374243 | F376: 0.03125174912 | H376: 0.05786576667 | I376: 0.1241461426
A377: 32 | B377: 543906.3 | E377: 0.01418929547 | F377: 0.03124045425 | H377: 0.0616241 | I377: 0.1350796967
A378: 33 | B378: 557295.6 | E378: 0.009038004717 | F378: 0.03149132624 | H378: 0.0019788 | I378: 0.147210637
... 681 more rows

Sheet Educators
A1: age | B1: isteacher | C1: notch | D1: eds
A2: 21 | B2: 1 | C2: 1 | D2: 8
A3: 21 | B3: 1 | C3: 6 | D3: 7
A4: 21 | B4: 1 | C4: 108 | D4: 7
A5: 21 | B5: 1 | C5: 158 | D5: 1
A6: 21 | B6: 1 | C6: 164 | D6: 21
A7: 22 | B7: 1 | C7: 1 | D7: 19
A8: 22 | B8: 1 | C8: 6 | D8: 9
A9: 22 | B9: 1 | C9: 72 | D9: 1
A10: 22 | B10: 1 | C10: 101 | D10: 1
A11: 22 | B11: 1 | C11: 102 | D11: 2
A12: 22 | B12: 1 | C12: 105 | D12: 1
A13: 22 | B13: 1 | C13: 108 | D13: 14
A14: 22 | B14: 1 | C14: 158 | D14: 28
A15: 22 | B15: 1 | C15: 164 | D15: 498
A16: 23 | B16: 1 | C16: 1 | D16: 18
A17: 23 | B17: 1 | C17: 3 | D17: 2
A18: 23 | B18: 1 | C18: 6 | D18: 38
A19: 23 | B19: 1 | C19: 8 | D19: 1
A20: 23 | B20: 1 | C20: 102 | D20: 2
A21: 23 | B21: 1 | C21: 108 | D21: 32
A22: 23 | B22: 1 | C22: 111 | D22: 1
A23: 23 | B23: 1 | C23: 158 | D23: 77
A24: 23 | B24: 1 | C24: 164 | D24: 2081
A25: 23 | B25: 1 | C25: 165 | D25: 1
A26: 23 | B26: 1 | C26: 167 | D26: 3
A27: 23 | B27: 1 | C27: 190 | D27: 3
A28: 24 | B28: 0 | C28: 213 | D28: 1
A29: 24 | B29: 1 | C29: 1 | D29: 30
A30: 24 | B30: 1 | C30: 3 | D30: 1
A31: 24 | B31: 1 | C31: 6 | D31: 36
A32: 24 | B32: 1 | C32: 8 | D32: 7
A33: 24 | B33: 1 | C33: 102 | D33: 2
A34: 24 | B34: 1 | C34: 108 | D34: 51
A35: 24 | B35: 1 | C35: 109 | D35: 1
A36: 24 | B36: 1 | C36: 143 | D36: 1
A37: 24 | B37: 1 | C37: 158 | D37: 130
A38: 24 | B38: 1 | C38: 164 | D38: 3926
A39: 24 | B39: 1 | C39: 167 | D39: 89
A40: 24 | B40: 1 | C40: 168 | D40: 1
A41: 24 | B41: 1 | C41: 169 | D41: 1
A42: 24 | B42: 1 | C42: 170 | D42: 2
A43: 24 | B43: 1 | C43: 174 | D43: 1
A44: 24 | B44: 1 | C44: 186 | D44: 1
A45: 24 | B45: 1 | C45: 190 | D45: 19
A46: 25 | B46: 0 | C46: 210 | D46: 7
A47: 25 | B47: 0 | C47: 213 | D47: 1
A48: 25 | B48: 1 | C48: 1 | D48: 43
A49: 25 | B49: 1 | C49: 5 | D49: 1
A50: 25 | B50: 1 | C50: 6 | D50: 41
A51: 25 | B51: 1 | C51: 8 | D51: 5
A52: 25 | B52: 1 | C52: 13 | D52: 1
A53: 25 | B53: 1 | C53: 72 | D53: 2
A54: 25 | B54: 1 | C54: 75 | D54: 1
A55: 25 | B55: 1 | C55: 95 | D55: 1
A56: 25 | B56: 1 | C56: 108 | D56: 56
A57: 25 | B57: 1 | C57: 109 | D57: 1
A58: 25 | B58: 1 | C58: 111 | D58: 3
A59: 25 | B59: 1 | C59: 143 | D59: 2
A60: 25 | B60: 1 | C60: 154 | D60: 4
A61: 25 | B61: 1 | C61: 158 | D61: 142
A62: 25 | B62: 1 | C62: 161 | D62: 1
A63: 25 | B63: 1 | C63: 164 | D63: 5699
A64: 25 | B64: 1 | C64: 165 | D64: 1
A65: 25 | B65: 1 | C65: 166 | D65: 5
A66: 25 | B66: 1 | C66: 167 | D66: 406
A67: 25 | B67: 1 | C67: 168 | D67: 2
A68: 25 | B68: 1 | C68: 170 | D68: 6
A69: 25 | B69: 1 | C69: 171 | D69: 1
A70: 25 | B70: 1 | C70: 176 | D70: 1
A71: 25 | B71: 1 | C71: 184 | D71: 2
A72: 25 | B72: 1 | C72: 190 | D72: 21
A73: 25 | B73: 1 | C73: 193 | D73: 1
A74: 25 | B74: 1 | C74: 370 | D74: 1
A75: 26 | B75: 0 | C75: 210 | D75: 47
A76: 26 | B76: 0 | C76: 267 | D76: 1
A77: 26 | B77: 1 | C77: 1 | D77: 45
A78: 26 | B78: 1 | C78: 3 | D78: 1
A79: 26 | B79: 1 | C79: 6 | D79: 42
A80: 26 | B80: 1 | C80: 8 | D80: 6
A81: 26 | B81: 1 | C81: 102 | D81: 1
A82: 26 | B82: 1 | C82: 106 | D82: 1
A83: 26 | B83: 1 | C83: 108 | D83: 84
A84: 26 | B84: 1 | C84: 109 | D84: 2
A85: 26 | B85: 1 | C85: 111 | D85: 9
A86: 26 | B86: 1 | C86: 114 | D86: 1
A87: 26 | B87: 1 | C87: 143 | D87: 16
A88: 26 | B88: 1 | C88: 154 | D88: 12
A89: 26 | B89: 1 | C89: 158 | D89: 146
A90: 26 | B90: 1 | C90: 161 | D90: 1
A91: 26 | B91: 1 | C91: 164 | D91: 6452
A92: 26 | B92: 1 | C92: 165 | D92: 2
A93: 26 | B93: 1 | C93: 166 | D93: 11
A94: 26 | B94: 1 | C94: 167 | D94: 1105
A95: 26 | B95: 1 | C95: 168 | D95: 3
A96: 26 | B96: 1 | C96: 169 | D96: 2
A97: 26 | B97: 1 | C97: 170 | D97: 69
A98: 26 | B98: 1 | C98: 171 | D98: 7
A99: 26 | B99: 1 | C99: 172 | D99: 6
A100: 26 | B100: 1 | C100: 175 | D100: 3
A101: 26 | B101: 1 | C101: 176 | D101: 1
A102: 26 | B102: 1 | C102: 190 | D102: 38
A103: 26 | B103: 1 | C103: 193 | D103: 5
A104: 26 | B104: 1 | C104: 223 | D104: 1
A105: 26 | B105: 1 | C105: 232 | D105: 1
A106: 27 | B106: 0 | C106: 1 | D106: 1
A107: 27 | B107: 0 | C107: 210 | D107: 84
A108: 27 | B108: 0 | C108: 213 | D108: 3
A109: 27 | B109: 0 | C109: 244 | D109: 1
A110: 27 | B110: 1 | C110: 1 | D110: 45
A111: 27 | B111: 1 | C111: 5 | D111: 1
A112: 27 | B112: 1 | C112: 6 | D112: 43
A113: 27 | B113: 1 | C113: 8 | D113: 7
A114: 27 | B114: 1 | C114: 72 | D114: 4
A115: 27 | B115: 1 | C115: 102 | D115: 9
A116: 27 | B116: 1 | C116: 108 | D116: 93
A117: 27 | B117: 1 | C117: 111 | D117: 8
A118: 27 | B118: 1 | C118: 114 | D118: 2
A119: 27 | B119: 1 | C119: 129 | D119: 2
A120: 27 | B120: 1 | C120: 142 | D120: 1
A121: 27 | B121: 1 | C121: 143 | D121: 17
A122: 27 | B122: 1 | C122: 154 | D122: 19
A123: 27 | B123: 1 | C123: 155 | D123: 1
A124: 27 | B124: 1 | C124: 158 | D124: 120
A125: 27 | B125: 1 | C125: 161 | D125: 1
A126: 27 | B126: 1 | C126: 164 | D126: 6475
A127: 27 | B127: 1 | C127: 166 | D127: 16
A128: 27 | B128: 1 | C128: 167 | D128: 2016
A129: 27 | B129: 1 | C129: 168 | D129: 6
A130: 27 | B130: 1 | C130: 169 | D130: 7
A131: 27 | B131: 1 | C131: 170 | D131: 381
A132: 27 | B132: 1 | C132: 171 | D132: 6
A133: 27 | B133: 1 | C133: 172 | D133: 19
A134: 27 | B134: 1 | C134: 173 | D134: 4
A135: 27 | B135: 1 | C135: 174 | D135: 2
A136: 27 | B136: 1 | C136: 175 | D136: 11
A137: 27 | B137: 1 | C137: 176 | D137: 2
A138: 27 | B138: 1 | C138: 177 | D138: 3
A139: 27 | B139: 1 | C139: 190 | D139: 22
A140: 27 | B140: 1 | C140: 193 | D140: 7
A141: 27 | B141: 1 | C141: 200 | D141: 1
A142: 28 | B142: 0 | C142: 210 | D142: 149
A143: 28 | B143: 0 | C143: 213 | D143: 14
A144: 28 | B144: 0 | C144: 218 | D144: 1
A145: 28 | B145: 0 | C145: 244 | D145: 4
A146: 28 | B146: 0 | C146: 354 | D146: 2
A147: 28 | B147: 1 | C147: 1 | D147: 54
A148: 28 | B148: 1 | C148: 3 | D148: 1
A149: 28 | B149: 1 | C149: 5 | D149: 2
A150: 28 | B150: 1 | C150: 6 | D150: 35
A151: 28 | B151: 1 | C151: 7 | D151: 1
A152: 28 | B152: 1 | C152: 8 | D152: 4
A153: 28 | B153: 1 | C153: 9 | D153: 4
A154: 28 | B154: 1 | C154: 12 | D154: 1
A155: 28 | B155: 1 | C155: 13 | D155: 1
A156: 28 | B156: 1 | C156: 72 | D156: 2
A157: 28 | B157: 1 | C157: 102 | D157: 1
A158: 28 | B158: 1 | C158: 106 | D158: 1
A159: 28 | B159: 1 | C159: 108 | D159: 79
A160: 28 | B160: 1 | C160: 109 | D160: 1
A161: 28 | B161: 1 | C161: 111 | D161: 21
A162: 28 | B162: 1 | C162: 114 | D162: 5
A163: 28 | B163: 1 | C163: 119 | D163: 1
A164: 28 | B164: 1 | C164: 129 | D164: 1
A165: 28 | B165: 1 | C165: 143 | D165: 28
A166: 28 | B166: 1 | C166: 147 | D166: 1
A167: 28 | B167: 1 | C167: 154 | D167: 11
A168: 28 | B168: 1 | C168: 155 | D168: 2
A169: 28 | B169: 1 | C169: 158 | D169: 116
A170: 28 | B170: 1 | C170: 161 | D170: 3
A171: 28 | B171: 1 | C171: 164 | D171: 6045
A172: 28 | B172: 1 | C172: 165 | D172: 2
A173: 28 | B173: 1 | C173: 166 | D173: 23
A174: 28 | B174: 1 | C174: 167 | D174: 2676
A175: 28 | B175: 1 | C175: 168 | D175: 27
A176: 28 | B176: 1 | C176: 169 | D176: 78
A177: 28 | B177: 1 | C177: 170 | D177: 921
A178: 28 | B178: 1 | C178: 171 | D178: 25
A179: 28 | B179: 1 | C179: 172 | D179: 158
A180: 28 | B180: 1 | C180: 173 | D180: 79
A181: 28 | B181: 1 | C181: 174 | D181: 17
A182: 28 | B182: 1 | C182: 175 | D182: 39
A183: 28 | B183: 1 | C183: 176 | D183: 1
A184: 28 | B184: 1 | C184: 177 | D184: 13
A185: 28 | B185: 1 | C185: 179 | D185: 2
A186: 28 | B186: 1 | C186: 184 | D186: 1
A187: 28 | B187: 1 | C187: 190 | D187: 45
A188: 28 | B188: 1 | C188: 193 | D188: 22
A189: 28 | B189: 1 | C189: 196 | D189: 4
A190: 28 | B190: 1 | C190: 217 | D190: 1
A191: 28 | B191: 1 | C191: 303 | D191: 1
A192: 29 | B192: 0 | C192: 210 | D192: 246
A193: 29 | B193: 0 | C193: 213 | D193: 40
A194: 29 | B194: 0 | C194: 214 | D194: 1
A195: 29 | B195: 0 | C195: 216 | D195: 4
A196: 29 | B196: 0 | C196: 244 | D196: 15
A197: 29 | B197: 0 | C197: 247 | D197: 2
A198: 29 | B198: 0 | C198: 267 | D198: 1
A199: 29 | B199: 0 | C199: 270 | D199: 2
A200: 29 | B200: 0 | C200: 318 | D200: 1
... 10231 more rows

Sheet Notches
A1: notchcode | B1: notchvalue
A2: 1 | B2: 128838
A3: 2 | B3: 130521
A4: 3 | B4: 130770
A5: 4 | B5: 131838
A6: 5 | B6: 132480
A7: 6 | B7: 133134
A8: 7 | B8: 133815
A9: 8 | B9: 134472
A10: 9 | B10: 135129
A11: 10 | B11: 135798
A12: 11 | B12: 136488
A13: 12 | B13: 137169
A14: 13 | B14: 137835
A15: 14 | B15: 138510
A16: 15 | B16: 139227
A17: 16 | B17: 139929
A18: 17 | B18: 140586
A19: 18 | B19: 141324
A20: 19 | B20: 142026
A21: 20 | B21: 142758
A22: 21 | B22: 143445
A23: 22 | B23: 144159
A24: 23 | B24: 144900
A25: 24 | B25: 145599
A26: 25 | B26: 146322
A27: 26 | B27: 147054
A28: 27 | B28: 147783
A29: 28 | B29: 148512
A30: 29 | B30: 149259
A31: 30 | B31: 149997
A32: 31 | B32: 150738
A33: 32 | B33: 151518
A34: 33 | B34: 152247
A35: 34 | B35: 152997
A36: 35 | B36: 153792
A37: 36 | B37: 154578
A38: 37 | B38: 155295
A39: 38 | B39: 156120
A40: 39 | B40: 156894
A41: 40 | B41: 157665
A42: 41 | B42: 158460
A43: 42 | B43: 159234
A44: 43 | B44: 160029
A45: 44 | B45: 160845
A46: 45 | B46: 161622
A47: 46 | B47: 162444
A48: 47 | B48: 163257
A49: 48 | B49: 164070
A50: 49 | B50: 164883
A51: 50 | B51: 165690
A52: 51 | B52: 166530
A53: 52 | B53: 167544
A54: 53 | B54: 168174
A55: 54 | B55: 169212
A56: 55 | B56: 170055
A57: 56 | B57: 170907
A58: 57 | B58: 171747
A59: 58 | B59: 172641
A60: 59 | B60: 173472
A61: 60 | B61: 174354
A62: 61 | B62: 175230
A63: 62 | B63: 176076
A64: 63 | B64: 176967
A65: 64 | B65: 177861
A66: 65 | B66: 178719
A67: 66 | B67: 179610
A68: 67 | B68: 180528
A69: 68 | B69: 181425
A70: 69 | B70: 182304
A71: 70 | B71: 183234
A72: 71 | B72: 184149
A73: 72 | B73: 185034
A74: 73 | B74: 185982
A75: 74 | B75: 186936
A76: 75 | B76: 187809
A77: 76 | B77: 188775
A78: 77 | B78: 189738
A79: 78 | B79: 190680
A80: 79 | B80: 191604
A81: 80 | B81: 192585
A82: 81 | B82: 193542
A83: 82 | B83: 194505
A84: 83 | B84: 195474
A85: 84 | B85: 196449
A86: 85 | B86: 197424
A87: 86 | B87: 198420
A88: 87 | B88: 199398
A89: 88 | B89: 200397
A90: 89 | B90: 201396
A91: 90 | B91: 202398
A92: 91 | B92: 203403
A93: 92 | B93: 204438
A94: 93 | B94: 205437
A95: 94 | B95: 206499
A96: 95 | B96: 207504
A97: 96 | B97: 208557
A98: 97 | B98: 209595
A99: 98 | B99: 210642
A100: 99 | B100: 211683
A101: 100 | B101: 212727
A102: 101 | B102: 213804
A103: 102 | B103: 214848
A104: 103 | B104: 215919
A105: 104 | B105: 216996
A106: 105 | B106: 218070
A107: 106 | B107: 219177
A108: 107 | B108: 220248
A109: 108 | B109: 221355
A110: 109 | B110: 222465
A111: 110 | B111: 223575
A112: 111 | B112: 224676
A113: 112 | B113: 225834
A114: 113 | B114: 226926
A115: 114 | B115: 228057
A116: 115 | B116: 229218
A117: 116 | B117: 230346
A118: 117 | B118: 231477
A119: 118 | B119: 232653
A120: 119 | B120: 233802
A121: 120 | B121: 234987
A122: 121 | B122: 236142
A123: 122 | B123: 237321
A124: 123 | B124: 238515
A125: 124 | B125: 239688
A126: 125 | B126: 240882
A127: 126 | B127: 242073
A128: 127 | B128: 243285
A129: 128 | B129: 244509
A130: 129 | B130: 245703
A131: 130 | B131: 246984
A132: 131 | B132: 248175
A133: 132 | B133: 249426
A134: 133 | B134: 250689
A135: 134 | B135: 251931
A136: 135 | B136: 253167
A137: 136 | B137: 254439
A138: 137 | B138: 255711
A139: 138 | B139: 257001
A140: 139 | B140: 258255
A141: 140 | B141: 259557
A142: 141 | B142: 260859
A143: 142 | B143: 262167
A144: 143 | B144: 263451
A145: 144 | B145: 264783
A146: 145 | B146: 266103
A147: 146 | B147: 267435
A148: 147 | B148: 268752
A149: 148 | B149: 270102
A150: 149 | B150: 271446
A151: 150 | B151: 272802
A152: 151 | B152: 274155
A153: 152 | B153: 275802
A154: 153 | B154: 276891
A155: 154 | B155: 278544
A156: 155 | B156: 279939
A157: 156 | B157: 281346
A158: 157 | B158: 282723
A159: 158 | B159: 284148
A160: 159 | B160: 285564
A161: 160 | B161: 286998
A162: 161 | B162: 288408
A163: 162 | B163: 289866
A164: 163 | B164: 291303
A165: 164 | B165: 292764
A166: 165 | B166: 294213
A167: 166 | B167: 295680
A168: 167 | B168: 297156
A169: 168 | B169: 298629
A170: 169 | B170: 300114
A171: 170 | B171: 301641
A172: 171 | B172: 303111
A173: 172 | B173: 304647
A174: 173 | B174: 306162
A175: 174 | B175: 307707
A176: 175 | B176: 309216
A177: 176 | B177: 310770
A178: 177 | B178: 312324
A179: 178 | B179: 313887
A180: 179 | B180: 315432
A181: 180 | B181: 317025
A182: 181 | B182: 318597
A183: 182 | B183: 320196
A184: 183 | B184: 321780
A185: 184 | B185: 323397
A186: 185 | B186: 324996
A187: 186 | B187: 326619
A188: 187 | B188: 328248
A189: 188 | B189: 329880
A190: 189 | B190: 331521
A191: 190 | B191: 332694
A192: 191 | B192: 333372
A193: 192 | B193: 334827
A194: 193 | B194: 336702
A195: 194 | B195: 337683
A196: 195 | B196: 338370
A197: 196 | B197: 340062
A198: 197 | B198: 341751
A199: 198 | B199: 343446
A200: 199 | B200: 345162
... 292 more rows

Sheet Log
A1: Year | B1: Value | C1: Description
A2: 2023 | B2: 403245 | C2: Total educators before attrition calculation
A3: 2023 | B3: 20064 | C3: Teachers departing
A4: 2023 | B4: 6329 | C4: Non-teachers departing
A5: 2023 | B5: 376852 | C5: Total educators after attrition calculation
A6: 2023 | B6: 3259 | C6: Non-teachers promoted to higher non-teacher positions
A7: 2023 | B7: 14.7 | C7: Average promotion bonus of promoted non-teachers (percentage)
A8: 2023 | B8: 8052 | C8: Teachers promoted to non-teacher positions
A9: 2023 | B9: 17.1 | C9: Average promotion bonus of promoted teachers (percentage)
A10: 2023 | B10: 376838 | C10: Total educators progressing up notches
A11: 2023 | B11: 0 | C11: Total planned under-qualified educators before qualification calculation
A12: 2023 | B12: 0 | C12: Total planned under-qualified educators after qualification calculation
A13: 2023 | B13: 376852 | C13: Total educators before joining calculation
A14: 2023 | B14: 0 | C14: Total planned under-qualified educators before joining calculation
A15: 2023 | B15: 34307 | C15: New teachers entering the system
A16: 2023 | B16: 411159 | C16: Total educators after joining calculation
A17: 2023 | B17: 0 | C17: Total planned under-qualified educators after joining calculation
A18: 2024 | B18: 411159 | C18: Total educators before attrition calculation
A19: 2024 | B19: 21083 | C19: Teachers departing
A20: 2024 | B20: 6847 | C20: Non-teachers departing
A21: 2024 | B21: 383229 | C21: Total educators after attrition calculation
A22: 2024 | B22: 3624 | C22: Non-teachers promoted to higher non-teacher positions
A23: 2024 | B23: 14.6 | C23: Average promotion bonus of promoted non-teachers (percentage)
A24: 2024 | B24: 8569 | C24: Teachers promoted to non-teacher positions
A25: 2024 | B25: 17.2 | C25: Average promotion bonus of promoted teachers (percentage)
A26: 2024 | B26: 383217 | C26: Total educators progressing up notches
A27: 2024 | B27: 0 | C27: Total planned under-qualified educators before qualification calculation
A28: 2024 | B28: 0 | C28: Total planned under-qualified educators after qualification calculation
A29: 2024 | B29: 383229 | C29: Total educators before joining calculation
A30: 2024 | B30: 0 | C30: Total planned under-qualified educators before joining calculation
A31: 2024 | B31: 35843 | C31: New teachers entering the system
A32: 2024 | B32: 419072 | C32: Total educators after joining calculation
A33: 2024 | B33: 0 | C33: Total planned under-qualified educators after joining calculation
A34: 2025 | B34: 419072 | C34: Total educators before attrition calculation
A35: 2025 | B35: 21965 | C35: Teachers departing
A36: 2025 | B36: 7416 | C36: Non-teachers departing
A37: 2025 | B37: 389691 | C37: Total educators after attrition calculation
A38: 2025 | B38: 4027 | C38: Non-teachers promoted to higher non-teacher positions
A39: 2025 | B39: 14.4 | C39: Average promotion bonus of promoted non-teachers (percentage)
A40: 2025 | B40: 9139 | C40: Teachers promoted to non-teacher positions
A41: 2025 | B41: 17.2 | C41: Average promotion bonus of promoted teachers (percentage)
A42: 2025 | B42: 389678 | C42: Total educators progressing up notches
A43: 2025 | B43: 0 | C43: Total planned under-qualified educators before qualification calculation
A44: 2025 | B44: 0 | C44: Total planned under-qualified educators after qualification calculation
A45: 2025 | B45: 389691 | C45: Total educators before joining calculation
A46: 2025 | B46: 0 | C46: Total planned under-qualified educators before joining calculation
A47: 2025 | B47: 37295 | C47: New teachers entering the system
A48: 2025 | B48: 426986 | C48: Total educators after joining calculation
A49: 2025 | B49: 0 | C49: Total planned under-qualified educators after joining calculation
A50: 2026 | B50: 426986 | C50: Total educators before attrition calculation
A51: 2026 | B51: 22711 | C51: Teachers departing
A52: 2026 | B52: 7970 | C52: Non-teachers departing
A53: 2026 | B53: 396305 | C53: Total educators after attrition calculation
A54: 2026 | B54: 4445 | C54: Non-teachers promoted to higher non-teacher positions
A55: 2026 | B55: 14.3 | C55: Average promotion bonus of promoted non-teachers (percentage)
A56: 2026 | B56: 9693 | C56: Teachers promoted to non-teacher positions
A57: 2026 | B57: 17.2 | C57: Average promotion bonus of promoted teachers (percentage)
A58: 2026 | B58: 396293 | C58: Total educators progressing up notches
A59: 2026 | B59: 0 | C59: Total planned under-qualified educators before qualification calculation
A60: 2026 | B60: 0 | C60: Total planned under-qualified educators after qualification calculation
A61: 2026 | B61: 396305 | C61: Total educators before joining calculation
A62: 2026 | B62: 0 | C62: Total planned under-qualified educators before joining calculation
A63: 2026 | B63: 38595 | C63: New teachers entering the system
A64: 2026 | B64: 434900 | C64: Total educators after joining calculation
A65: 2026 | B65: 0 | C65: Total planned under-qualified educators after joining calculation
A66: 2027 | B66: 434900 | C66: Total educators before attrition calculation
A67: 2027 | B67: 23436 | C67: Teachers departing
A68: 2027 | B68: 8516 | C68: Non-teachers departing
A69: 2027 | B69: 402948 | C69: Total educators after attrition calculation
A70: 2027 | B70: 4867 | C70: Non-teachers promoted to higher non-teacher positions
A71: 2027 | B71: 14.1 | C71: Average promotion bonus of promoted non-teachers (percentage)
A72: 2027 | B72: 10239 | C72: Teachers promoted to non-teacher positions
A73: 2027 | B73: 17.3 | C73: Average promotion bonus of promoted teachers (percentage)
A74: 2027 | B74: 402933 | C74: Total educators progressing up notches
A75: 2027 | B75: 0 | C75: Total planned under-qualified educators before qualification calculation
A76: 2027 | B76: 0 | C76: Total planned under-qualified educators after qualification calculation
A77: 2027 | B77: 402948 | C77: Total educators before joining calculation
A78: 2027 | B78: 0 | C78: Total planned under-qualified educators before joining calculation
A79: 2027 | B79: 39866 | C79: New teachers entering the system
A80: 2027 | B80: 442814 | C80: Total educators after joining calculation
A81: 2027 | B81: 0 | C81: Total planned under-qualified educators after joining calculation
A82: 2028 | B82: 442814 | C82: Total educators before attrition calculation
A83: 2028 | B83: 24185 | C83: Teachers departing
A84: 2028 | B84: 9050 | C84: Non-teachers departing
A85: 2028 | B85: 409579 | C85: Total educators after attrition calculation
A86: 2028 | B86: 5317 | C86: Non-teachers promoted to higher non-teacher positions
A87: 2028 | B87: 14 | C87: Average promotion bonus of promoted non-teachers (percentage)
A88: 2028 | B88: 10773 | C88: Teachers promoted to non-teacher positions
A89: 2028 | B89: 17.4 | C89: Average promotion bonus of promoted teachers (percentage)
A90: 2028 | B90: 409563 | C90: Total educators progressing up notches
A91: 2028 | B91: 0 | C91: Total planned under-qualified educators before qualification calculation
A92: 2028 | B92: 0 | C92: Total planned under-qualified educators after qualification calculation
A93: 2028 | B93: 409579 | C93: Total educators before joining calculation
A94: 2028 | B94: 0 | C94: Total planned under-qualified educators before joining calculation
A95: 2028 | B95: 41149 | C95: New teachers entering the system
A96: 2028 | B96: 450728 | C96: Total educators after joining calculation
A97: 2028 | B97: 0 | C97: Total planned under-qualified educators after joining calculation
A98: 2029 | B98: 450728 | C98: Total educators before attrition calculation
A99: 2029 | B99: 24761 | C99: Teachers departing
A100: 2029 | B100: 9500 | C100: Non-teachers departing
A101: 2029 | B101: 416467 | C101: Total educators after attrition calculation
A102: 2029 | B102: 5682 | C102: Non-teachers promoted to higher non-teacher positions
A103: 2029 | B103: 14 | C103: Average promotion bonus of promoted non-teachers (percentage)
A104: 2029 | B104: 11222 | C104: Teachers promoted to non-teacher positions
A105: 2029 | B105: 17.2 | C105: Average promotion bonus of promoted teachers (percentage)
A106: 2029 | B106: 416453 | C106: Total educators progressing up notches
A107: 2029 | B107: 0 | C107: Total planned under-qualified educators before qualification calculation
A108: 2029 | B108: 0 | C108: Total planned under-qualified educators after qualification calculation
A109: 2029 | B109: 416467 | C109: Total educators before joining calculation
A110: 2029 | B110: 0 | C110: Total planned under-qualified educators before joining calculation
A111: 2029 | B111: 42174 | C111: New teachers entering the system
A112: 2029 | B112: 458641 | C112: Total educators after joining calculation
A113: 2029 | B113: 0 | C113: Total planned under-qualified educators after joining calculation
A114: 2030 | B114: 458641 | C114: Total educators before attrition calculation
A115: 2030 | B115: 25155 | C115: Teachers departing
A116: 2030 | B116: 9846 | C116: Non-teachers departing
A117: 2030 | B117: 423640 | C117: Total educators after attrition calculation
A118: 2030 | B118: 6028 | C118: Non-teachers promoted to higher non-teacher positions
A119: 2030 | B119: 13.9 | C119: Average promotion bonus of promoted non-teachers (percentage)
A120: 2030 | B120: 11569 | C120: Teachers promoted to non-teacher positions
A121: 2030 | B121: 16.9 | C121: Average promotion bonus of promoted teachers (percentage)
A122: 2030 | B122: 423627 | C122: Total educators progressing up notches
A123: 2030 | B123: 0 | C123: Total planned under-qualified educators before qualification calculation
A124: 2030 | B124: 0 | C124: Total planned under-qualified educators after qualification calculation
A125: 2030 | B125: 423640 | C125: Total educators before joining calculation
A126: 2030 | B126: 0 | C126: Total planned under-qualified educators before joining calculation
A127: 2030 | B127: 42915 | C127: New teachers entering the system
A128: 2030 | B128: 466555 | C128: Total educators after joining calculation
A129: 2030 | B129: 0 | C129: Total planned under-qualified educators after joining calculation
A130: 2031 | B130: 466555 | C130: Total educators before attrition calculation
A131: 2031 | B131: 25411 | C131: Teachers departing
A132: 2031 | B132: 10051 | C132: Non-teachers departing
A133: 2031 | B133: 431093 | C133: Total educators after attrition calculation
A134: 2031 | B134: 6292 | C134: Non-teachers promoted to higher non-teacher positions
A135: 2031 | B135: 13.9 | C135: Average promotion bonus of promoted non-teachers (percentage)
A136: 2031 | B136: 10051 | C136: Teachers promoted to non-teacher positions
A137: 2031 | B137: 16.9 | C137: Average promotion bonus of promoted teachers (percentage)
A138: 2031 | B138: 431081 | C138: Total educators progressing up notches
A139: 2031 | B139: 0 | C139: Total planned under-qualified educators before qualification calculation
A140: 2031 | B140: 0 | C140: Total planned under-qualified educators after qualification calculation
A141: 2031 | B141: 431093 | C141: Total educators before joining calculation
A142: 2031 | B142: 0 | C142: Total planned under-qualified educators before joining calculation
A143: 2031 | B143: 35462 | C143: New teachers entering the system
A144: 2031 | B144: 466555 | C144: Total educators after joining calculation
A145: 2031 | B145: 0 | C145: Total planned under-qualified educators after joining calculation
A146: 2032 | B146: 466555 | C146: Total educators before attrition calculation
A147: 2032 | B147: 25150 | C147: Teachers departing
A148: 2032 | B148: 10000 | C148: Non-teachers departing
A149: 2032 | B149: 431405 | C149: Total educators after attrition calculation
A150: 2032 | B150: 6241 | C150: Non-teachers promoted to higher non-teacher positions
A151: 2032 | B151: 13.9 | C151: Average promotion bonus of promoted non-teachers (percentage)
A152: 2032 | B152: 10000 | C152: Teachers promoted to non-teacher positions
A153: 2032 | B153: 16.8 | C153: Average promotion bonus of promoted teachers (percentage)
A154: 2032 | B154: 431395 | C154: Total educators progressing up notches
A155: 2032 | B155: 0 | C155: Total planned under-qualified educators before qualification calculation
A156: 2032 | B156: 0 | C156: Total planned under-qualified educators after qualification calculation
A157: 2032 | B157: 431405 | C157: Total educators before joining calculation
A158: 2032 | B158: 0 | C158: Total planned under-qualified educators before joining calculation
A159: 2032 | B159: 35150 | C159: New teachers entering the system
A160: 2032 | B160: 466555 | C160: Total educators after joining calculation
A161: 2032 | B161: 0 | C161: Total planned under-qualified educators after joining calculation
A162: 2033 | B162: 466555 | C162: Total educators before attrition calculation
A163: 2033 | B163: 24931 | C163: Teachers departing
A164: 2033 | B164: 9875 | C164: Non-teachers departing
A165: 2033 | B165: 431749 | C165: Total educators after attrition calculation
A166: 2033 | B166: 6189 | C166: Non-teachers promoted to higher non-teacher positions
A167: 2033 | B167: 13.9 | C167: Average promotion bonus of promoted non-teachers (percentage)
A168: 2033 | B168: 9875 | C168: Teachers promoted to non-teacher positions
A169: 2033 | B169: 16.3 | C169: Average promotion bonus of promoted teachers (percentage)
A170: 2033 | B170: 431738 | C170: Total educators progressing up notches
A171: 2033 | B171: 0 | C171: Total planned under-qualified educators before qualification calculation
A172: 2033 | B172: 0 | C172: Total planned under-qualified educators after qualification calculation
A173: 2033 | B173: 431749 | C173: Total educators before joining calculation
A174: 2033 | B174: 0 | C174: Total planned under-qualified educators before joining calculation
A175: 2033 | B175: 34806 | C175: New teachers entering the system
A176: 2033 | B176: 466555 | C176: Total educators after joining calculation
A177: 2033 | B177: 0 | C177: Total planned under-qualified educators after joining calculation
A178: 2034 | B178: 466555 | C178: Total educators before attrition calculation
A179: 2034 | B179: 24489 | C179: Teachers departing
A180: 2034 | B180: 9424 | C180: Non-teachers departing
A181: 2034 | B181: 432642 | C181: Total educators after attrition calculation
A182: 2034 | B182: 5928 | C182: Non-teachers promoted to higher non-teacher positions
A183: 2034 | B183: 13.9 | C183: Average promotion bonus of promoted non-teachers (percentage)
A184: 2034 | B184: 9424 | C184: Teachers promoted to non-teacher positions
A185: 2034 | B185: 16.1 | C185: Average promotion bonus of promoted teachers (percentage)
A186: 2034 | B186: 432632 | C186: Total educators progressing up notches
A187: 2034 | B187: 0 | C187: Total planned under-qualified educators before qualification calculation
A188: 2034 | B188: 0 | C188: Total planned under-qualified educators after qualification calculation
A189: 2034 | B189: 432642 | C189: Total educators before joining calculation
A190: 2034 | B190: 0 | C190: Total planned under-qualified educators before joining calculation
A191: 2034 | B191: 33913 | C191: New teachers entering the system
A192: 2034 | B192: 466555 | C192: Total educators after joining calculation
A193: 2034 | B193: 0 | C193: Total planned under-qualified educators after joining calculation
A194: 2035 | B194: 466555 | C194: Total educators before attrition calculation
A195: 2035 | B195: 24119 | C195: Teachers departing
A196: 2035 | B196: 8986 | C196: Non-teachers departing
A197: 2035 | B197: 433450 | C197: Total educators after attrition calculation
A198: 2035 | B198: 5653 | C198: Non-teachers promoted to higher non-teacher positions
A199: 2035 | B199: 13.9 | C199: Average promotion bonus of promoted non-teachers (percentage)
A200: 2035 | B200: 8986 | C200: Teachers promoted to non-teacher positions
... 601 more rows
